bitfinex/quotes_SOLUSD_20260113
["timestamp","ask_amount","ask_price","bid_price","bid_amount"]
[1768334722583,7.11096507,144.09,144.04,4.12600044]
[1768334722875,7.11096507,144.09,144.04,0.66244554]
[1768334723046,7.11096507,144.09,144.04,4.12600044]
[1768334724149,0.099,144.08,144.04,4.12600044]
[1768334724469,0.17013961,144.07,144.02,4.12600044]
[1768334725285,10.57490213,144.07,144.02,0.66244554]
[1768334725450,10.54490214,144.07,144.02,4.12600044]
[1768334725653,7.08134724,144.07,144.02,4.12600044]
[1768334725949,104.2,144.09,144.05,0.66244554]
[1768334726164,116.86,144.09,144.05,0.66244554]
[1768334726656,116.86,144.09,144.04,4.12600044]
[1768334727084,120.3235549,144.09,144.04,0.66244554]
[1768334727265,127.26370363,144.09,144.04,0.66244554]
[1768334727469,127.40456184,144.09,144.04,0.66244554]
[1768334728375,0.099,144.08,144.01,6.94392432]
[1768334728692,0.099,144.08,144.03,4.12600044]
[1768334729354,7.0397572,144.08,144.04,0.66244554]
[1768334729755,10.5033121,144.08,144.04,0.66244554]
[1768334729971,10.5033121,144.08,144.03,0.66244554]
[1768334730479,10.5033121,144.08,144.04,0.66244554]
[1768334731948,3.60399452,144.07,144.01,0.66244554]
[1768334732154,3.60399452,144.07,144.02,0.66244554]
[1768334733374,6.94155213,144.06,144.02,0.66244554]
[1768334734462,0.14002937,144.05,144.01,2.88202527]
[1768334734649,6.94081365,144.08,144.03,0.66244554]
[1768334734853,9.16039338,144.08,144.03,0.66244554]
[1768334735371,6.94081365,144.08,144.04,0.65640844]
[1768334735573,126.01987806,144.09,144.04,0.65640844]
[1768334736872,0.11085822,144.13,144.09,0.65640844]
[1768334737090,17.45439855,144.15,144.1,0.65640844]
[1768334737267,0.099,144.14,144.1,2.21957973]
[1768334737573,0.099,144.14,144.09,2.87598817]
[1768334738082,0.099,144.14,144.09,2.21957973]
[1768334738385,0.11073963,144.13,144.09,2.21957973]
[1768334739474,0.11073963,144.13,144.1,2.21957973]
[1768334739770,110.8801107,144.17,144.08,0.65640844]
[1768334739771,0.099,144.18,144.12,2.87598817]
[1768334739971,0.099,144.18,144.13,2.21957973]
[1768334740165,2.33031936,144.17,144.12,0.65640844]
[1768334740669,12.66,144.19,144.13,0.65640844]
[1768334740670,2.31857973,144.18,144.13,0.65640844]
[1768334741289,2.21957973,144.17,144.13,0.65640844]
[1768334743187,9.15599395,144.17,144.12,0.65640844]
[1768334743489,2.21957973,144.17,144.12,0.65640844]
[1768334746290,7.04680689,144.18,144.12,0.65640844]
[1768334746494,2.21957973,144.18,144.13,0.65640844]
[1768334746794,12.66,144.19,144.14,0.65640844]
[1768334746976,2.21957973,144.18,144.14,0.65640844]
[1768334747295,14.87957973,144.19,144.14,0.65640844]
[1768334748390,21.81495117,144.19,144.14,0.65640844]
[1768334748972,2.21957973,144.17,144.14,0.65640844]
[1768334749175,12.66,144.19,144.15,0.65640844]
[1768334749396,104.2,144.23,144.16,0.65640844]
[1768334749609,111.13379654,144.23,144.16,0.65640844]
[1768334749806,2.21957973,144.21,144.16,0.65640844]
[1768334749972,111.23279654,144.23,144.17,0.65640844]
[1768334750291,2.21957973,144.22,144.17,0.65640844]
[1768334750586,0.1,144.25,144.18,0.65640844]
[1768334750587,6.93308153,144.24,144.18,0.65640844]
[1768334750789,7.14340601,144.25,144.19,0.65640844]
[1768334751001,9.25212752,144.25,144.2,0.65640844]
[1768334751291,2.21957973,144.24,144.2,0.65640844]
[1768334751992,9.15283511,144.24,144.2,0.59640844]
[1768334753292,0.1,144.25,144.2,0.59640844]
[1768334754609,9.25203386,144.25,144.2,0.59640844]
[1768334755695,2.31957973,144.25,144.2,0.59640844]
[1768334755872,0.1,144.25,144.21,0.65640844]
[1768334756279,2.31957973,144.25,144.21,0.65640844]
[1768334756589,0.1,144.25,144.21,0.65640844]
[1768334756995,104.2,144.28,144.25,0.65640844]
[1768334757181,106.41957973,144.28,144.25,0.65640844]
[1768334757383,2.21957973,144.27,144.24,0.65640844]
[1768334757580,0.37012963,144.29,144.26,0.65640844]
[1768334757581,2.31957973,144.29,144.26,0.65640844]
[1768334757976,0.1,144.29,144.26,0.65640844]
[1768334758292,0.1,144.29,144.24,0.20956205]
[1768334758293,2.21957973,144.29,144.24,0.20956205]
[1768334758901,9.84710858,144.29,144.24,0.20956205]
[1768334759077,2.21957973,144.28,144.24,0.20956205]
[1768334759274,0.69693121,144.25,144.2,0.20956205]
[1768334759603,2.91651094,144.27,144.22,0.20956205]
[1768334760191,2.21957973,144.27,144.22,0.20956205]
[1768334760376,15.55651094,144.29,144.24,7.14239145]
[1768334760575,13.33693121,144.29,144.24,7.14239145]
[1768334760873,2.91651094,144.29,144.24,7.08239145]
[1768334761078,2.91651094,144.29,144.24,0.20956205]
[1768334761275,2.91651094,144.27,144.22,0.20956205]
[1768334761494,2.21957973,144.26,144.22,0.20956205]
[1768334761696,0.69693121,144.27,144.23,0.20956205]
[1768334761905,2.91651094,144.27,144.23,0.20956205]
[1768334762691,2.91651094,144.29,144.24,0.20956205]
[1768334763020,9.84723665,144.29,144.24,0.20956205]
[1768334763194,2.21957973,144.28,144.24,0.20956205]
[1768334763809,0.69693121,144.26,144.21,7.14355148]
[1768334763988,0.69693121,144.26,144.21,9.36313121]
[1768334764188,2.21957973,144.27,144.22,0.20956205]
[1768334764389,0.69693121,144.28,144.22,0.20956205]
[1768334764630,2.21957973,144.27,144.22,0.20956205]
[1768334764924,9.85457073,144.27,144.22,0.20956205]
[1768334765208,2.21957973,144.25,144.2,9.36380316]
[1768334765397,0.70331721,144.25,144.18,0.20956205]
[1768334765596,2.92289694,144.22,144.17,6.93587814]
[1768334765800,0.70331721,144.2,144.13,0.20956205]
[1768334766114,0.70331721,144.2,144.16,9.15629553]
[1768334766804,0.70331721,144.2,144.16,2.21957973]
[1768334767010,0.70331721,144.2,144.15,7.14659632]
[1768334767304,0.70331721,144.2,144.16,2.21957973]
[1768334767494,9.85706453,144.22,144.16,9.36587408]
[1768334767689,2.92289694,144.21,144.16,0.20956205]
[1768334767903,2.92289694,144.21,144.16,9.36583191]
[1768334768097,2.92289694,144.21,144.16,7.14625218]
[1768334768316,2.92289694,144.21,144.16,2.42914178]
[1768334768911,2.92289694,144.21,144.16,7.14624803]
[1768334769108,2.92289694,144.21,144.16,9.36582776]
[1768334769301,0.70331721,144.21,144.16,9.36582776]
[1768334769506,9.85645555,144.23,144.17,2.42914178]
[1768334769706,0.70331721,144.22,144.17,2.21957973]
[1768334770407,0.70331721,144.22,144.18,2.21957973]
[1768334770713,0.70331721,144.22,144.16,24.48809042]
[1768334770913,0.70331721,144.22,144.17,2.21957973]
[1768334771119,2.92289694,144.22,144.17,9.15573036]
[1768334772314,2.92289694,144.22,144.17,9.36529241]
[1768334772523,0.70331721,144.22,144.17,9.36529241]
[1768334772815,0.70331721,144.24,144.19,2.42914178]
[1768334772994,2.92289694,144.24,144.19,0.20956205]
[1768334773314,2.92289694,144.23,144.17,39.34593193]
[1768334773503,0.70331721,144.22,144.17,22.00529241]
[1768334773706,0.70331721,144.21,144.17,21.79573036]
[1768334774196,0.70331721,144.21,144.17,22.00529241]
[1768334774406,0.70331721,144.21,144.17,9.36529241]
[1768334774791,0.70331721,144.21,144.17,9.15573036]
[1768334776017,2.21957973,144.23,144.17,9.15573036]
[1768334776018,2.92289694,144.22,144.17,9.36529241]
[1768334777814,0.70331721,144.22,144.17,9.36529241]
[1768334778021,2.92289694,144.22,144.17,9.36529241]
[1768334778191,0.70331721,144.22,144.17,9.36529241]
[1768334779516,0.70672673,144.19,144.14,2.42914178]
[1768334779893,0.70672673,144.19,144.15,2.42914178]
[1768334780093,0.70672673,144.21,144.16,2.42914178]
[1768334780294,0.70672673,144.21,144.17,2.21957973]
[1768334780591,0.70672673,144.21,144.16,0.20956205]
[1768334780791,0.70672673,144.21,144.18,2.21957973]
[1768334781019,9.15257651,144.24,144.19,2.42914178]
[1768334781020,0.70672673,144.23,144.19,2.42914178]
[1768334781714,0.70672673,144.23,144.19,9.36419731]
[1768334781895,0.70672673,144.23,144.19,7.14461758]
[1768334782097,2.21957973,144.24,144.19,7.14461758]
[1768334782305,2.92630646,144.23,144.18,7.14513658]
[1768334782618,0.70672673,144.23,144.18,7.14513658]
[1768334783013,2.92630646,144.23,144.18,7.14513658]
[1768334783721,0.70672673,144.22,144.18,7.14513658]
[1768334784096,0.70672673,144.22,144.17,9.36519892]
[1768334784420,0.70672673,144.22,144.18,6.93547437]
[1768334788114,0.70672673,144.21,144.17,6.9362558]
[1768334789019,0.70672673,144.21,144.16,6.93669905]
[1768334789322,0.70672673,144.2,144.16,6.93669905]
[1768334789525,0.70672673,144.17,144.11,0.20956205]
[1768334789829,0.67672674,144.16,144.12,2.45914177]
[1768334790125,0.67672674,144.16,144.13,6.9381808]
[1768334790707,6.93492955,144.2,144.13,9.15776053]
[1768334791029,2.21957973,144.19,144.13,9.39732257]
[1768334791430,2.21957973,144.19,144.14,2.21957973]
[1768334791620,0.70672673,144.18,144.14,2.21957973]
[1768334792225,0.70672673,144.18,144.15,6.93721817]
[1768334792626,6.93404466,144.22,144.15,6.93721817]
[1768334792627,0.70672673,144.2,144.15,9.39635994]
[1768334792925,0.70672673,144.19,144.15,6.93721817]
[1768334793426,0.70672673,144.18,144.14,10.39925759]
[1768334793618,0.70672673,144.18,144.14,6.93750109]
[1768334793819,0.70672673,144.18,144.14,7.17706313]
[1768334794021,0.70672673,144.18,144.14,10.63881963]
[1768334794406,0.70672673,144.18,144.14,7.17706313]
[1768334794625,0.70672673,144.17,144.13,23.03984666]
[1768334794926,0.10200637,144.17,144.14,6.93761715]
[1768334795439,0.10200637,144.17,144.13,11.06322224]
[1768334796706,0.10200637,144.17,144.13,6.93797931]
[1768334796914,0.10200637,144.17,144.12,11.06371154]
[1768334797228,0.67622135,144.16,144.11,4.12524293]
[1768334797627,0.67622135,144.16,144.12,6.93854746]
[1768334798217,0.67622135,144.16,144.11,11.06418455]
[1768334798522,0.67622135,144.15,144.11,11.06418455]
[1768334799231,0.64622135,144.15,144.11,11.06418455]
[1768334799432,0.64622135,144.15,144.12,3.4617565]
[1768334800341,0.64622135,144.15,144.13,3.4617565]
[1768334803819,0.67622135,144.18,144.14,3.4617565]
[1768334806143,0.67622135,144.18,144.13,7.60162934]
[1768334806438,0.67622135,144.18,144.14,3.4617565]
[1768334807547,0.67622135,144.17,144.14,3.4617565]
[1768334807739,0.67622135,144.17,144.13,3.4617565]
[1768334808253,0.67622135,144.17,144.14,3.4617565]
[1768334808743,0.67622135,144.17,144.13,4.12524293]
[1768334808942,0.67622135,144.17,144.1,12.64]
[1768334809146,0.099,144.15,144.1,3.4617565]
[1768334809719,0.10372449,144.12,144.06,4.12524293]
[1768334809923,0.56677189,144.11,144.07,0.66348643]
[1768334810146,0.53677189,144.11,144.07,4.12524293]
[1768334811628,0.53677189,144.11,144.07,0.66348643]
[1768334813048,12.64,144.13,144.09,0.66348643]
[1768334813222,12.739,144.14,144.1,0.66348643]
[1768334813427,0.10776687,144.1,144.06,0.66348643]
[1768334813627,3.56952337,144.1,144.06,0.66348643]
[1768334813828,0.10776687,144.1,144.06,0.66348643]
[1768334814354,0.10776687,144.1,144.06,11.06677681]
[1768334814554,0.54622135,144.11,144.07,3.4617565]
[1768334815156,0.099,144.12,144.08,4.12524293]
[1768334815864,0.099,144.12,144.07,0.66348643]
[1768334816067,0.099,144.12,144.08,3.4617565]
[1768334816733,0.10776687,144.08,144.04,3.4617565]
[1768334817241,0.10776687,144.08,144.03,0.66348643]
[1768334817441,0.10776687,144.08,144.03,4.12524293]
[1768334817647,7.04839181,144.08,144.03,4.12524293]
[1768334817828,7.04839181,144.08,144.03,16.78524293]
[1768334818755,7.04839181,144.08,144.04,3.4617565]
[1768334819155,6.94062494,144.08,144.04,4.12524293]
[1768334819365,0.099,144.09,144.05,4.12524293]
[1768334819859,7.03951452,144.09,144.05,4.12524293]
[1768334820161,7.03951452,144.09,144.0,6.09437]
[1768334820162,0.56227906,144.05,144.0,2.6326135]
[1768334820357,6.923513,144.06,144.0,2.6326135]
[1768334820358,0.54195443,144.02,144.0,2.6326135]
[1768334820766,4.00371093,144.02,144.0,2.06486015]
[1768334821057,3.4617565,144.01,143.98,0.2]
[1768334821257,10.1418672,144.06,143.97,0.2]
[1768334821258,3.4617565,143.99,143.97,0.15804557]
[1768334822073,3.4617565,144.0,143.97,0.15804557]
[1768334823667,6.94422591,144.01,143.97,0.15804557]
[1768334823668,3.4617565,143.99,143.97,0.15804557]
[1768334825169,17.35802629,144.03,143.97,0.86453625]
[1768334825346,3.4617565,144.0,143.97,0.86453625]
[1768334826374,3.4617565,143.99,143.97,0.15804557]
[1768334826540,10.40630115,144.0,143.97,0.15804557]
[1768334826740,3.4617565,143.99,143.97,0.15804557]
[1768334827665,10.40674201,143.99,143.97,0.15804557]
[1768334828071,6.94480448,144.0,143.97,0.15804557]
[1768334828251,3.4617565,143.98,143.96,0.2]
[1768334828565,27.76767209,144.0,143.94,0.2]
[1768334828566,3.4617565,143.97,143.94,0.2]
[1768334828743,3.4617565,143.95,143.94,0.2]
[1768334829273,3.4617565,143.95,143.93,1e-08]
[1768334829477,3.4617565,143.94,143.9,0.2]
[1768334829689,6.6801107,143.97,143.9,0.2]
[1768334829690,3.4617565,143.92,143.9,0.2]
[1768334830171,6.94813214,143.93,143.9,0.2]
[1768334830172,3.4617565,143.93,143.9,0.2]
[1768334831867,10.40967858,143.93,143.9,0.2]
[1768334832073,3.4617565,143.92,143.9,0.2]
[1768334832949,3.4617565,143.91,143.87,0.2]
[1768334833149,3.4617565,143.88,143.86,0.2]
[1768334833352,3.4617565,143.86,143.83,12.66]
[1768334833564,3.4617565,143.85,143.81,0.2]
[1768334833978,3.4617565,143.82,143.79,0.2]
[1768334834196,24.32751788,143.87,143.79,0.2]
[1768334834197,3.4617565,143.81,143.79,0.2]
[1768334834471,3.4617565,143.82,143.79,0.2]
[1768334834653,24.32751788,143.87,143.79,0.90649068]
[1768334834855,3.4617565,143.85,143.8,0.70649068]
[1768334835081,3.4617565,143.87,143.82,0.70649068]
[1768334835578,3.4617565,143.96,143.87,0.70649068]
[1768334835868,3.4617565,143.94,143.89,0.70649068]
[1768334836080,3.4617565,143.93,143.89,0.70649068]
[1768334836385,3.4617565,143.95,143.9,0.70649068]
[1768334837479,8.60194562,143.95,143.9,7.65574841]
[1768334838187,8.60194562,143.94,143.9,0.70649068]
[1768334838381,6.94700456,143.95,143.88,0.65480838]
[1768334838767,30.99425662,143.95,143.86,0.65480838]
[1768334838973,8.60194562,143.91,143.87,0.65480838]
[1768334839179,8.60194562,143.91,143.86,6.95115898]
[1768334839488,8.60194562,143.91,143.86,0.65480838]
[1768334839784,8.60194562,143.91,143.86,7.60599679]
[1768334840491,8.60194562,143.92,143.87,0.65480838]
[1768334840671,8.60194562,143.93,143.88,0.65480838]
[1768334840870,8.60194562,143.94,143.89,0.65480838]
[1768334841277,8.60194562,143.92,143.89,0.65480838]
[1768334841478,8.60194562,143.92,143.87,13.31480838]
[1768334841888,8.60194562,143.92,143.87,0.65480838]
[1768334842211,8.60194562,143.93,143.88,0.65480838]
[1768334842889,8.60194562,143.93,143.87,15.55262329]
[1768334842890,6.94674963,143.96,143.9,0.65480838]
[1768334843267,8.60194562,143.95,143.9,0.65480838]
[1768334843680,15.5488116,143.95,143.9,0.65480838]
[1768334844394,24.04537006,143.97,143.91,8.60194562]
[1768334844395,15.54844844,143.96,143.91,8.60194562]
[1768334844587,17.36264867,143.99,143.92,0.65480838]
[1768334844784,8.60194562,143.97,143.92,0.65480838]
[1768334845776,32.91285632,143.97,143.92,0.65480838]
[1768334845993,8.60194562,143.95,143.9,0.65480838]
[1768334846876,8.60194562,143.94,143.88,9.256754]
[1768334847076,8.60194562,143.93,143.88,0.65480838]
[1768334847690,15.54997698,143.93,143.88,0.65480838]
[1768334847888,8.60194562,143.92,143.88,0.65480838]
[1768334849791,8.60194562,143.91,143.86,0.65480838]
[1768334849992,6.94843318,143.92,143.86,0.65480838]
[1768334849993,8.60194562,143.9,143.86,0.65480838]
[1768334852391,15.55131769,143.9,143.86,0.65480838]
[1768334852614,6.94937207,143.9,143.86,0.65480838]
[1768334852804,15.55131769,143.9,143.86,0.65480838]
[1768334853986,15.55103733,143.91,143.86,0.65480838]
[1768334855404,12.24565963,143.91,143.86,0.65480838]
[1768334855901,5.29656792,143.91,143.87,0.70991453]
[1768334856993,12.24546782,143.91,143.87,0.70991453]
[1768334857392,5.29656792,143.9,143.87,0.70991453]
[1768334859021,12.24595294,143.9,143.87,0.70991453]
[1768334860303,6.94938502,143.9,143.87,0.70991453]
[1768334862309,34.49353474,144.07,143.9,0.70991453]
[1768334862499,2.22468512,144.0,143.92,0.70991453]
[1768334862705,2.22468512,143.97,143.92,0.70991453]
[1768334863396,2.22468512,143.97,143.91,2.22468512]
[1768334863597,6.9458915,143.97,143.91,2.22468512]
[1768334863913,26.53530538,143.97,143.92,0.70991453]
[1768334864127,2.22468512,143.96,143.92,0.70991453]
[1768334865314,5.2927318,143.96,143.92,0.70991453]
[1768334866302,6.94681959,143.96,143.92,0.70991453]
[1768334866713,6.94681959,143.96,143.91,5.2927318]
[1768334867391,6.94681959,143.96,143.91,6.00264633]
[1768334867597,6.94681959,143.96,143.91,0.70991453]
[1768334868018,6.94681959,143.96,143.91,6.00264633]
[1768334868312,12.23955139,143.96,143.91,0.70991453]
[1768334868519,29.60548637,143.96,143.91,0.70991453]
[1768334869221,6.94555794,143.98,143.94,0.70991453]
[1768334870113,12.68,143.99,143.91,6.94860778]
[1768334870114,5.2927318,144.02,143.98,0.70991453]
[1768334870298,6.94396222,144.01,143.98,0.70991453]
[1768334870493,6.94396222,144.01,143.96,5.2927318]
[1768334870693,6.94396222,144.01,143.97,0.70991453]
[1768334871121,34.7203298,144.14,143.99,0.70991453]
[1768334871303,5.2927318,144.05,143.99,6.00264633]
[1768334871820,17.9727318,144.05,143.99,6.00264633]
[1768334872528,6.94251596,144.04,143.99,6.00264633]
[1768334872896,6.94251596,144.04,144.0,5.2927318]
[1768334874038,6.94251596,144.04,143.99,0.70991453]
[1768334874332,6.94251596,144.04,143.92,52.71317467]
[1768334874333,29.59153767,144.04,143.98,6.00264633]
[1768334874726,19.62203027,144.06,144.01,0.70991453]
[1768334874930,19.62203027,144.06,144.02,6.00264633]
[1768334876633,111.14023304,144.09,144.03,6.00264633]
[1768334876841,6.93866222,144.12,144.06,6.00264633]
[1768334877010,5.2927318,144.11,144.06,0.70991453]
[1768334877208,43.62542848,144.12,144.04,0.70991453]
[1768334877427,5.2927318,144.09,144.04,0.70991453]
[1768334877638,12.66,144.09,144.05,6.00264633]
[1768334877937,12.66,144.09,144.06,6.00264633]
[1768334878439,19.60012339,144.09,144.06,6.00264633]
[1768334878638,5.2927318,144.08,144.01,0.70991453]
[1768334878810,5.2927318,144.08,143.99,30.02219571]
[1768334878811,19.60012339,144.09,144.05,0.70991453]
[1768334879016,36.95039058,144.09,144.05,0.70991453]
[1768334879216,19.60012339,144.09,144.05,0.70991453]
[1768334879630,24.89285519,144.09,144.05,0.70991453]
[1768334880336,19.60012339,144.09,144.05,0.70991453]
[1768334880716,19.60012339,144.09,144.05,6.00264633]
[1768334881439,34.79073769,144.14,144.05,6.00264633]
[1768334881440,0.1,144.14,144.09,0.70991453]
[1768334881621,5.97448831,144.13,144.03,17.35716901]
[1768334881827,0.67620771,144.11,144.06,5.2927318]
[1768334882029,5.96893951,144.11,144.05,5.2927318]
[1768334882217,5.2927318,144.1,144.04,5.2927318]
[1768334882535,6.94010687,144.09,144.04,5.2927318]
[1768334882838,6.94010687,144.09,144.01,12.23667711]
[1768334882839,5.2927318,144.07,144.01,12.23667711]
[1768334883137,5.2927318,144.07,144.02,5.2927318]
[1768334883518,5.2927318,144.07,144.03,0.70991453]
[1768334884736,5.43576239,144.06,144.01,0.70991453]
[1768334884921,5.2927318,144.05,144.01,0.70991453]
[1768334885118,0.14303059,144.06,144.01,0.70991453]
[1768334885319,5.2927318,144.05,144.01,0.70991453]
[1768334885531,5.2927318,144.04,144.01,0.70991453]
[1768334885729,5.2927318,144.05,144.01,0.70991453]
[1768334885930,12.23479718,144.05,144.01,0.70991453]
[1768334887537,5.2927318,144.05,144.01,0.70991453]
[1768334887720,12.23441891,144.06,144.01,0.70991453]
[1768334888230,5.2927318,144.05,144.01,0.70991453]
[1768334889445,6.94168711,144.06,144.01,0.70991453]
[1768334889628,5.2927318,144.05,144.01,0.70991453]
[1768334890636,5.2927318,144.04,144.01,0.70991453]
[1768334891031,5.2927318,144.03,143.99,0.72095749]
[1768334891823,12.2359405,144.03,143.99,0.72095749]
[1768334893054,0.15,144.0,143.99,0.72095749]
[1768334893652,12.2359405,144.03,144.0,0.72095749]
[1768334894352,12.2359405,144.03,143.98,0.72095749]
[1768334894561,12.53641559,144.03,143.98,0.72095749]
[1768334894750,5.2927318,144.02,143.98,0.72095749]
[1768334895432,9.46475858,144.03,143.98,0.72095749]
[1768334896351,2.22107479,144.02,143.98,0.72095749]
[1768334896750,19.90368379,144.03,143.98,0.72095749]
[1768334896943,2.22107479,144.02,143.98,0.72095749]
[1768334897346,2.22107479,144.0,143.98,0.72095749]
[1768334898028,7.59633851,144.02,143.98,0.72095749]
[1768334898029,2.22107479,144.01,143.98,0.72095749]
[1768334898234,9.16456826,144.02,143.98,0.72095749]
[1768334898835,2.22107479,144.01,143.98,0.72095749]
[1768334899345,9.16456826,144.02,143.98,0.72095749]
[1768334900936,6.94349347,144.02,143.98,0.72095749]
[1768334902444,7.24472382,144.02,143.98,0.72095749]
[1768334902751,6.94349347,144.02,143.98,0.72095749]
[1768334904137,9.16456826,144.02,143.98,0.72095749]
[1768334904774,2.22107479,144.0,143.96,0.71484563]
[1768334905163,2.22107479,144.01,143.96,0.71484563]
[1768334905541,24.96145116,144.02,143.97,0.71484563]
[1768334905749,27.18252595,144.02,143.97,0.71484563]
[1768334909964,2.22107479,144.01,143.97,0.71484563]
[1768334911569,24.96145116,144.02,143.97,0.71484563]
[1768334911766,27.18252595,144.02,143.97,0.71484563]
[1768334911949,24.96145116,144.02,143.97,0.71484563]
[1768334912149,27.18252595,144.02,143.97,0.71484563]
[1768334913257,2.22107479,144.01,143.97,0.71484563]
[1768334914168,6.94444444,144.0,143.97,0.71484563]
[1768334914466,6.94444444,144.0,143.93,12.66]
[1768334914467,2.22107479,143.98,143.93,0.71484563]
[1768334914659,2.22107479,143.97,143.93,0.71484563]
[1768334915470,3.4728754,143.97,143.93,0.71484563]
[1768334916148,3.4728754,143.96,143.93,0.71484563]
[1768334917047,3.4728754,143.97,143.93,0.71484563]
[1768334917467,0.72344939,143.98,143.93,0.71484563]
[1768334917647,3.4728754,143.97,143.93,0.71484563]
[1768334918363,10.62316739,143.97,143.93,0.71484563]
[1768334919064,3.67727589,143.97,143.93,7.66262849]
[1768334919983,7.66908385,143.98,143.94,0.66618206]
[1768334920153,6.94396222,144.01,143.95,0.66618206]
[1768334920359,3.4728754,144.03,143.97,0.66618206]
[1768334920562,10.41549608,144.04,143.98,0.66618206]
[1768334921074,10.41549608,144.04,143.99,0.66618206]
[1768334921576,6.94262068,144.04,144.0,0.66618206]
[1768334921779,10.41549608,144.04,144.0,0.66618206]
[1768334922783,10.41509281,144.05,144.01,0.66618206]
[1768334925758,4.1911343,144.04,144.0,0.66618206]
[1768334925967,3.4728754,144.04,144.0,0.66618206]
[1768334926579,7.6656668,144.05,144.0,0.66618206]
[1768334926777,3.4728754,144.04,144.0,0.66618206]
[1768334927684,10.41509281,144.05,144.0,0.66618206]
[1768334929485,10.41509281,144.05,144.01,0.66618206]
[1768334929798,11.13335171,144.05,144.01,0.66618206]
[1768334932779,10.41509281,144.05,144.01,0.66618206]
[1768334933356,11.21,144.07,144.04,3.4728754]
[1768334933673,0.72344939,144.11,144.01,6.94380188]
[1768334933674,7.66356624,144.09,144.02,12.66]
[1768334933866,7.66356624,144.09,144.04,3.4728754]
[1768334934057,7.66356624,144.09,144.05,3.4728754]
[1768334934853,6.93982003,144.1,144.05,10.41480838]
[1768334935057,7.66326942,144.1,144.05,10.41480838]
[1768334935254,7.66326942,144.1,144.04,6.94230773]
[1768334935459,7.66326942,144.1,144.05,3.4728754]
[1768334936279,0.72344939,144.12,144.07,3.4728754]
[1768334937178,0.72344939,144.11,144.07,3.4728754]
[1768334938284,0.72344939,144.11,144.06,3.4728754]
[1768334938462,0.72344939,144.1,144.06,3.4728754]
[1768334939074,0.72344939,144.09,144.05,3.4728754]
[1768334940188,0.72344939,144.08,144.04,3.4728754]
[1768334940782,0.72344939,144.08,144.04,10.41534814]
[1768334940964,0.72344939,144.08,144.04,6.94247274]
[1768334941288,7.66405896,144.08,144.04,10.41534814]
[1768334943492,0.72344939,144.1,144.05,3.4728754]
[1768334943697,7.66329303,144.1,144.06,3.4728754]
[1768334944802,0.72344939,144.1,144.06,10.4143919]
[1768334944983,7.6631544,144.1,144.06,3.4728754]
[1768334945796,0.65369314,144.09,144.06,3.4728754]
[1768334947370,0.65369314,144.09,144.05,10.41480617]
[1768334948497,0.65369314,144.09,144.05,6.94193077]
[1768334948799,7.5938077,144.09,144.05,10.41480617]
[1768334948994,0.65369314,144.08,144.04,3.4728754]
[1768334949300,0.65369314,144.08,144.03,3.4728754]
[1768334949591,0.65369314,144.08,144.01,17.35925546]
[1768334949592,0.65369314,144.08,144.04,3.4728754]
[1768334950097,7.59333508,144.1,144.05,3.4728754]
[1768334950488,7.59333508,144.1,144.06,3.4728754]
[1768334950994,7.59333508,144.1,144.05,3.4728754]
[1768334952316,7.59333508,144.1,144.05,10.41483597]
[1768334953205,0.65369314,144.09,144.05,6.94196057]
[1768334953498,7.59333508,144.1,144.05,3.4728754]
[1768334953985,7.59302419,144.11,144.06,3.4728754]
[1768334954999,7.59302419,144.11,144.06,10.41440554]
[1768334956604,7.59302419,144.11,144.06,3.4728754]
[1768334956782,0.69818064,144.1,144.06,3.4728754]
[1768334956982,7.63791881,144.1,144.06,3.4728754]
[1768334957185,7.63791881,144.1,144.05,6.94181865]
[1768334957391,7.63791881,144.1,144.06,3.4728754]
[1768334957600,6.93933098,144.11,144.07,3.4728754]
[1768334957787,7.63751162,144.11,144.07,3.4728754]
[1768334958097,7.63751162,144.11,144.06,10.41424207]
[1768334958301,0.69818064,144.09,144.04,6.94244123]
[1768334958504,0.69818064,144.09,144.04,23.07531663]
[1768334958892,0.69818064,144.09,144.04,3.4728754]
[1768334959100,0.69818064,144.07,144.03,3.4728754]
[1768334959703,0.69818064,144.07,144.03,10.41580939]
[1768334960885,0.69818064,144.06,144.01,6.94370328]
[1768334961086,0.69818064,144.05,144.01,10.41657868]
[1768334961287,0.69818064,144.05,144.01,6.94370328]
[1768334961600,0.69818064,144.04,144.0,23.07710045]
[1768334962007,0.69818064,144.04,144.0,10.41710045]
[1768334962217,0.69818064,144.0,143.96,6.94610388]
[1768334962383,4.17105604,144.02,143.96,3.4728754]
[1768334962585,0.69818064,144.03,143.98,3.4728754]
[1768334963384,0.69818064,144.03,143.98,10.41782557]
[1768334965506,0.69818064,144.05,144.0,3.4728754]
[1768334965710,0.69818064,144.07,144.02,3.4728754]
[1768334966504,0.69818064,144.09,144.05,3.4728754]
[1768334967089,7.63829579,144.09,144.01,12.66]
[1768334967292,0.69818064,144.08,144.01,12.66]
[1768334967483,7.63888087,144.08,144.04,3.4728754]
[1768334967685,0.69818064,144.07,144.03,3.4728754]
[1768334967881,0.69818064,144.07,144.02,19.60317436]